[Event "*** SCC Grand Prix: Titled Tuesday Blitz"]
[Site "Chess.com"]
[Date "2020.10.06"]
[Round "8"]
[White "tdf98pantani"]
[Black "vaishali2001"]
[Result "1/2-1/2"]
[WhiteElo "2716"]
[BlackElo "2548"]
[TimeControl "180+1"]
[EndTime "11:36:02 PDT"]
[Termination "Game drawn by repetition"]

1. e4 {[%clk 0:03:00.9]} 1... e6 {[%clk 0:02:57.9]} 2. d4 {[%clk 0:03:00.3]}
2... d5 {[%clk 0:02:58.3]} 3. Nd2 {[%clk 0:03:00.5]} 3... c5 {[%clk 0:02:56.9]}
4. exd5 {[%clk 0:02:57.3]} 4... Qxd5 {[%clk 0:02:57.8]} 5. Ngf3 {[%clk
0:02:57.3]} 5... cxd4 {[%clk 0:02:57.9]} 6. Bc4 {[%clk 0:02:57.2]} 6... Qd6
{[%clk 0:02:57.8]} 7. O-O {[%clk 0:02:57.4]} 7... Nf6 {[%clk 0:02:57.1]} 8. Nb3
{[%clk 0:02:57.3]} 8... Nc6 {[%clk 0:02:57.5]} 9. Nbxd4 {[%clk 0:02:57.7]} 9...
Nxd4 {[%clk 0:02:58.4]} 10. Nxd4 {[%clk 0:02:58.3]} 10... Be7 {[%clk 0:02:57.3]}
11. c3 {[%clk 0:02:58.6]} 11... O-O {[%clk 0:02:54]} 12. Bg5 {[%clk 0:02:52.2]}
12... Qc5 {[%clk 0:02:38.9]} 13. Bxf6 {[%clk 0:02:46.9]} 13... Bxf6 {[%clk
0:02:39.8]} 14. Qd3 {[%clk 0:02:18.3]} 14... Bd7 {[%clk 0:02:04.4]} 15. Rad1
{[%clk 0:02:14.7]} 15... Rad8 {[%clk 0:02:03]} 16. Qe2 {[%clk 0:02:09.3]} 16...
Bc8 {[%clk 0:01:44.3]} 17. Nb3 {[%clk 0:02:04.4]} 17... Qc6 {[%clk 0:01:39.3]}
18. Bd3 {[%clk 0:02:03.5]} 18... b6 {[%clk 0:01:30.1]} 19. Be4 {[%clk
0:02:01.7]} 19... Qc7 {[%clk 0:01:29.3]} 20. Qf3 {[%clk 0:01:56.1]} 20... Ba6
{[%clk 0:01:10.2]} 21. Rfe1 {[%clk 0:01:55.3]} 21... Rxd1 {[%clk 0:00:58.5]} 22.
Rxd1 {[%clk 0:01:54.3]} 22... Rd8 {[%clk 0:00:59]} 23. g3 {[%clk 0:01:52.9]}
23... Rxd1+ {[%clk 0:00:46.9]} 24. Qxd1 {[%clk 0:01:52.7]} 24... g6 {[%clk
0:00:47.6]} 25. Nd4 {[%clk 0:01:29.9]} 25... Qe5 {[%clk 0:00:37.4]} 26. Qf3
{[%clk 0:01:23.4]} 26... Kg7 {[%clk 0:00:30.9]} 27. Bd3 {[%clk 0:01:11.3]} 27...
Bxd3 {[%clk 0:00:23.3]} 28. Qxd3 {[%clk 0:01:11.3]} 28... Qd5 {[%clk 0:00:23.7]}
29. a3 {[%clk 0:00:58.3]} 29... Bxd4 {[%clk 0:00:16.1]} 30. Qxd4+ {[%clk
0:00:55.1]} 30... Qxd4 {[%clk 0:00:16.3]} 31. cxd4 {[%clk 0:00:55.6]} 31... Kf6
{[%clk 0:00:16.8]} 32. f3 {[%clk 0:00:55.8]} 32... e5 {[%clk 0:00:13.5]} 33.
dxe5+ {[%clk 0:00:50.1]} 33... Kxe5 {[%clk 0:00:14.4]} 34. Kf2 {[%clk
0:00:49.6]} 34... Kd4 {[%clk 0:00:14.8]} 35. Ke2 {[%clk 0:00:50.2]} 35... Kc4
{[%clk 0:00:14.4]} 36. Kd2 {[%clk 0:00:50.7]} 36... Kb3 {[%clk 0:00:10.6]} 37.
Kc1 {[%clk 0:00:51]} 37... h5 {[%clk 0:00:06.7]} 38. Kb1 {[%clk 0:00:46.5]}
38... f6 {[%clk 0:00:06.7]} 39. Kc1 {[%clk 0:00:46.3]} 39... g5 {[%clk 0:00:07]}
40. Kb1 {[%clk 0:00:39.7]} 40... f5 {[%clk 0:00:07.2]} 41. Kc1 {[%clk
0:00:37.2]} 41... f4 {[%clk 0:00:06.7]} 42. gxf4 {[%clk 0:00:36.1]} 42... gxf4
{[%clk 0:00:07.6]} 43. Kb1 {[%clk 0:00:36.2]} 43... Kc4 {[%clk 0:00:07.9]} 44.
Kc2 {[%clk 0:00:36.6]} 44... Kd4 {[%clk 0:00:07.3]} 45. Kd2 {[%clk 0:00:37]}
45... h4 {[%clk 0:00:06.9]} 46. h3 {[%clk 0:00:35.2]} 46... a6 {[%clk
0:00:06.4]} 47. b3 {[%clk 0:00:35.2]} 47... b5 {[%clk 0:00:05]} 48. a4 {[%clk
0:00:31.7]} 48... b4 {[%clk 0:00:02.7]} 49. a5 {[%clk 0:00:32.1]} 49... Kc5
{[%clk 0:00:02.1]} 50. Kd3 {[%clk 0:00:33]} 50... Kd5 {[%clk 0:00:02.4]} 51. Ke2
{[%clk 0:00:32]} 51... Kc5 {[%clk 0:00:01.8]} 52. Kd3 {[%clk 0:00:32.4]} 52...
Kd5 {[%clk 0:00:02.3]} 53. Ke2 {[%clk 0:00:32.6]} 53... Kd4 {[%clk 0:00:03]} 54.
Kd2 {[%clk 0:00:32.9]} 54... Ke5 {[%clk 0:00:03.4]} 55. Kd3 {[%clk 0:00:32.8]}
55... Kd5 {[%clk 0:00:04]} 1/2-1/2

[Event "*** SCC Grand Prix: Titled Tuesday Blitz"]
[Site "Chess.com"]
[Date "2020.10.06"]
[Round "8"]
[White "annazero"]
[Black "remi04"]
[Result "1/2-1/2"]
[WhiteElo "2406"]
[BlackElo "2544"]
[TimeControl "180+1"]
[EndTime "11:36:03 PDT"]
[Termination "Game drawn by repetition"]

1. d4 {[%clk 0:03:00.9]} 1... d5 {[%clk 0:02:59.6]} 2. Nf3 {[%clk 0:03:00.4]}
2... Nf6 {[%clk 0:02:59.4]} 3. c4 {[%clk 0:03:00.3]} 3... c6 {[%clk 0:02:59.6]}
4. Nc3 {[%clk 0:02:57.4]} 4... e6 {[%clk 0:02:59.5]} 5. e3 {[%clk 0:02:54.6]}
5... Nbd7 {[%clk 0:02:59.6]} 6. Bd3 {[%clk 0:02:54.4]} 6... dxc4 {[%clk
0:02:59.9]} 7. Bxc4 {[%clk 0:02:55.1]} 7... b5 {[%clk 0:03:00.8]} 8. Bd3 {[%clk
0:02:55.7]} 8... Bd6 {[%clk 0:03:01.3]} 9. O-O {[%clk 0:02:55.8]} 9... O-O
{[%clk 0:03:01.8]} 10. b3 {[%clk 0:02:55.2]} 10... Bb7 {[%clk 0:02:50.2]} 11.
Bb2 {[%clk 0:02:54.2]} 11... Qe7 {[%clk 0:02:49.6]} 12. Rc1 {[%clk 0:02:49.1]}
12... a6 {[%clk 0:02:48.3]} 13. Ne4 {[%clk 0:02:44.7]} 13... Nxe4 {[%clk
0:02:37.4]} 14. Bxe4 {[%clk 0:02:45.6]} 14... Rac8 {[%clk 0:02:37.5]} 15. Ne5
{[%clk 0:02:41.5]} 15... Nxe5 {[%clk 0:01:37.3]} 16. dxe5 {[%clk 0:02:40]} 16...
Ba3 {[%clk 0:01:37.1]} 17. Bxa3 {[%clk 0:02:33.9]} 17... Qxa3 {[%clk 0:01:36.7]}
18. Qd7 {[%clk 0:02:18.8]} 18... Ba8 {[%clk 0:01:35.7]} 19. Rc2 {[%clk
0:02:05.6]} 19... Rfd8 {[%clk 0:01:31.7]} 20. Qa7 {[%clk 0:02:01.7]} 20... Qb4
{[%clk 0:01:20.3]} 21. Bf3 {[%clk 0:01:55.7]} 21... Qa5 {[%clk 0:01:15.6]} 22.
h3 {[%clk 0:01:47.4]} 22... h6 {[%clk 0:00:55.9]} 23. Rfc1 {[%clk 0:01:45.5]}
23... Rc7 {[%clk 0:00:53.1]} 24. Qc5 {[%clk 0:01:44.2]} 24... Rcd7 {[%clk
0:00:49.4]} 25. b4 {[%clk 0:01:11]} 25... Qa4 {[%clk 0:00:46.9]} 26. Bxc6 {[%clk
0:01:03.1]} 26... Rc7 {[%clk 0:00:42.8]} 27. Qb6 {[%clk 0:01:00.3]} 27... Rdc8
{[%clk 0:00:42.6]} 28. Be4 {[%clk 0:00:49.3]} 28... Rxc2 {[%clk 0:00:34.2]} 29.
Rxc2 {[%clk 0:00:48.9]} 29... Rf8 {[%clk 0:00:23]} 30. Qd4 {[%clk 0:00:38.3]}
30... Bxe4 {[%clk 0:00:20.2]} 31. Qxe4 {[%clk 0:00:38.5]} 31... Rd8 {[%clk
0:00:20.6]} 32. Kh2 {[%clk 0:00:36.4]} 32... Qa3 {[%clk 0:00:20.2]} 33. Qb7
{[%clk 0:00:32.9]} 33... Qxb4 {[%clk 0:00:19]} 34. Qxa6 {[%clk 0:00:26.5]} 34...
Qe4 {[%clk 0:00:18.7]} 35. Qc6 {[%clk 0:00:15.8]} 35... Qxe5+ {[%clk 0:00:17.7]}
36. g3 {[%clk 0:00:16.3]} 36... Kh7 {[%clk 0:00:15.5]} 37. Qc5 {[%clk
0:00:13.4]} 37... Rd5 {[%clk 0:00:14.2]} 38. Qb4 {[%clk 0:00:12.3]} 38... Qf6
{[%clk 0:00:11.9]} 39. Rb2 {[%clk 0:00:12.5]} 39... Rf5 {[%clk 0:00:11.3]} 40.
Kg2 {[%clk 0:00:13]} 40... Qd8 {[%clk 0:00:10.8]} 41. Qe4 {[%clk 0:00:13.4]}
41... Qd5 {[%clk 0:00:10.4]} 42. Qxd5 {[%clk 0:00:12.5]} 42... Rxd5 {[%clk
0:00:11.3]} 43. e4 {[%clk 0:00:12.4]} 43... Rc5 {[%clk 0:00:11.1]} 44. Kf3
{[%clk 0:00:13]} 44... Kg6 {[%clk 0:00:11.6]} 45. Ke3 {[%clk 0:00:13.1]} 45...
Kf6 {[%clk 0:00:12.2]} 46. Kd4 {[%clk 0:00:13.4]} 46... Rc4+ {[%clk 0:00:11.9]}
47. Kd3 {[%clk 0:00:13.4]} 47... Rc5 {[%clk 0:00:12.2]} 48. Kd4 {[%clk
0:00:13.7]} 48... Rc4+ {[%clk 0:00:12.1]} 49. Kd3 {[%clk 0:00:13.9]} 49... Rc5
{[%clk 0:00:12.4]} 50. Kd4 {[%clk 0:00:14.3]} 1/2-1/2

[Event "*** SCC Grand Prix: Titled Tuesday Blitz"]
[Site "Chess.com"]
[Date "2020.10.06"]
[Round "8"]
[White "juli2512"]
[Black "BikingBrian"]
[Result "1/2-1/2"]
[WhiteElo "2054"]
[BlackElo "2196"]
[TimeControl "180+1"]
[EndTime "11:36:03 PDT"]
[Termination "Game drawn by repetition"]

1. e4 {[%clk 0:03:00.9]} 1... c5 {[%clk 0:02:58.4]} 2. d3 {[%clk 0:02:56]} 2...
g6 {[%clk 0:02:57.2]} 3. Nf3 {[%clk 0:02:54.9]} 3... Bg7 {[%clk 0:02:57.4]} 4.
g3 {[%clk 0:02:55.3]} 4... Nc6 {[%clk 0:02:57.3]} 5. Bg2 {[%clk 0:02:55.7]} 5...
e5 {[%clk 0:02:57.6]} 6. O-O {[%clk 0:02:55.8]} 6... Nge7 {[%clk 0:02:57.9]} 7.
c3 {[%clk 0:02:54.7]} 7... O-O {[%clk 0:02:57.1]} 8. a3 {[%clk 0:02:52.9]} 8...
d6 {[%clk 0:02:57.2]} 9. b4 {[%clk 0:02:49.3]} 9... b6 {[%clk 0:02:54.1]} 10.
Bb2 {[%clk 0:02:44.6]} 10... h6 {[%clk 0:02:52.6]} 11. Nbd2 {[%clk 0:02:43.8]}
11... Be6 {[%clk 0:02:52.4]} 12. Re1 {[%clk 0:02:42.5]} 12... Qd7 {[%clk
0:02:48.8]} 13. Nf1 {[%clk 0:02:37.5]} 13... Kh7 {[%clk 0:02:48]} 14. d4 {[%clk
0:02:30.2]} 14... cxd4 {[%clk 0:02:45.1]} 15. cxd4 {[%clk 0:02:28.5]} 15... Bh3
{[%clk 0:02:37.1]} 16. Ne3 {[%clk 0:02:15.3]} 16... Bxg2 {[%clk 0:02:35.7]} 17.
Kxg2 {[%clk 0:02:15.2]} 17... Rad8 {[%clk 0:02:16.4]} 18. Rc1 {[%clk 0:02:08.7]}
18... a5 {[%clk 0:02:10.6]} 19. dxe5 {[%clk 0:01:52]} 19... dxe5 {[%clk
0:02:03.5]} 20. Qxd7 {[%clk 0:01:36.8]} 20... Rxd7 {[%clk 0:02:04.4]} 21. b5
{[%clk 0:01:19.1]} 21... Nd4 {[%clk 0:02:03.4]} 22. a4 {[%clk 0:01:14.5]} 22...
Nb3 {[%clk 0:01:55.3]} 23. Rcd1 {[%clk 0:01:10.7]} 23... Nd4 {[%clk 0:01:42.3]}
24. Nxd4 {[%clk 0:01:08.5]} 24... exd4 {[%clk 0:01:42.2]} 25. Bxd4 {[%clk
0:01:06]} 25... Rxd4 {[%clk 0:01:38.3]} 26. Rxd4 {[%clk 0:01:02.7]} 26... Bxd4
{[%clk 0:01:38.4]} 27. Nc4 {[%clk 0:01:02.4]} 27... Bc5 {[%clk 0:01:23.3]} 28.
Rd1 {[%clk 0:00:59.1]} 28... f5 {[%clk 0:01:21.4]} 29. e5 {[%clk 0:00:57.4]}
29... f4 {[%clk 0:01:15.9]} 30. Rd7 {[%clk 0:00:54.9]} 30... fxg3 {[%clk
0:01:12.5]} 31. fxg3 {[%clk 0:00:55.1]} 31... Rf2+ {[%clk 0:01:09.1]} 32. Kh3
{[%clk 0:00:55.1]} 32... Re2 {[%clk 0:01:00.6]} 33. Nxb6 {[%clk 0:00:49.8]}
33... Rxe5 {[%clk 0:00:58.4]} 34. Nc8 {[%clk 0:00:45.3]} 34... Kg7 {[%clk
0:00:50.4]} 35. b6 {[%clk 0:00:44.6]} 35... Bxb6 {[%clk 0:00:46.2]} 36. Nxb6
{[%clk 0:00:40.4]} 36... Kf6 {[%clk 0:00:42.6]} 37. Ra7 {[%clk 0:00:37.1]} 37...
Nc6 {[%clk 0:00:36.1]} 38. Nd7+ {[%clk 0:00:35.4]} 38... Ke6 {[%clk 0:00:34.3]}
39. Nxe5 {[%clk 0:00:33.7]} 39... Nxa7 {[%clk 0:00:34.5]} 40. Nxg6 {[%clk
0:00:33.6]} 40... Nc8 {[%clk 0:00:30.6]} 41. Nf4+ {[%clk 0:00:30.4]} 41... Ke5
{[%clk 0:00:24.8]} 42. Kh4 {[%clk 0:00:29.8]} 42... Nb6 {[%clk 0:00:24.4]} 43.
Kh5 {[%clk 0:00:28.4]} 43... Nxa4 {[%clk 0:00:24.5]} 44. Kxh6 {[%clk 0:00:28.4]}
44... Nc5 {[%clk 0:00:24.5]} 45. Ne2 {[%clk 0:00:27.5]} 45... a4 {[%clk
0:00:22.3]} 46. Nc3 {[%clk 0:00:25.5]} 46... a3 {[%clk 0:00:22.7]} 47. g4 {[%clk
0:00:24.8]} 47... Kf6 {[%clk 0:00:13.9]} 48. g5+ {[%clk 0:00:22.7]} 48... Kf7
{[%clk 0:00:14.3]} 49. Kh7 {[%clk 0:00:22.6]} 49... Ne4 {[%clk 0:00:13.1]} 50.
g6+ {[%clk 0:00:18.4]} 50... Kf6 {[%clk 0:00:11.3]} 51. g7 {[%clk 0:00:16.8]}
51... Ng5+ {[%clk 0:00:10]} 52. Kh6 {[%clk 0:00:16.4]} 52... Nf7+ {[%clk
0:00:10.2]} 53. Kh7 {[%clk 0:00:16.4]} 53... Ng5+ {[%clk 0:00:10.5]} 54. Kh8
{[%clk 0:00:16]} 54... Nf7+ {[%clk 0:00:10.1]} 55. Kh7 {[%clk 0:00:16.4]} 55...
Ng5+ {[%clk 0:00:10.4]} 1/2-1/2

[Event "*** SCC Grand Prix: Titled Tuesday Blitz"]
[Site "Chess.com"]
[Date "2020.10.06"]
[Round "8"]
[White "fireheart92"]
[Black "severomorskij"]
[Result "1-0"]
[WhiteElo "2884"]
[BlackElo "2777"]
[TimeControl "180+1"]
[EndTime "11:36:04 PDT"]
[Termination "fireheart92 won by resignation"]

1. d4 {[%clk 0:03:00.9]} 1... Nf6 {[%clk 0:02:59.5]} 2. c4 {[%clk 0:03:00.3]}
2... e6 {[%clk 0:02:59.6]} 3. Nf3 {[%clk 0:02:59.9]} 3... Bb4+ {[%clk 0:02:59]}
4. Nbd2 {[%clk 0:02:58.5]} 4... O-O {[%clk 0:02:57.9]} 5. a3 {[%clk 0:02:58.2]}
5... Be7 {[%clk 0:02:58.1]} 6. e4 {[%clk 0:02:56.5]} 6... d6 {[%clk 0:02:57.8]}
7. Qc2 {[%clk 0:02:52.5]} 7... Nfd7 {[%clk 0:02:42.8]} 8. g3 {[%clk 0:01:56.3]}
8... e5 {[%clk 0:02:36.7]} 9. Bg2 {[%clk 0:01:45.9]} 9... exd4 {[%clk
0:02:34.9]} 10. Nxd4 {[%clk 0:01:46.8]} 10... Bf6 {[%clk 0:02:34.4]} 11. N2f3
{[%clk 0:01:34.5]} 11... Nc6 {[%clk 0:02:30.4]} 12. Nxc6 {[%clk 0:01:34]} 12...
bxc6 {[%clk 0:02:31.3]} 13. Rb1 {[%clk 0:01:29.5]} 13... Nc5 {[%clk 0:02:27.3]}
14. O-O {[%clk 0:01:27]} 14... Re8 {[%clk 0:02:23.8]} 15. Re1 {[%clk 0:01:21.5]}
15... Bg4 {[%clk 0:02:11.3]} 16. h3 {[%clk 0:01:12.6]} 16... Bh5 {[%clk
0:01:57.5]} 17. b4 {[%clk 0:01:09.4]} 17... Nxe4 {[%clk 0:01:57.5]} 18. Rxe4
{[%clk 0:00:50.3]} 18... Rxe4 {[%clk 0:01:55.4]} 19. Qxe4 {[%clk 0:00:51.2]}
19... Bg6 {[%clk 0:01:55.1]} 20. Qxc6 {[%clk 0:00:51.2]} 20... Bxb1 {[%clk
0:01:54.6]} 21. Nd2 {[%clk 0:00:51.4]} 21... Rb8 {[%clk 0:01:44.7]} 22. Nxb1
{[%clk 0:00:51.2]} 22... Bd4 {[%clk 0:01:41.2]} 23. Nd2 {[%clk 0:00:47.4]} 23...
Qe7 {[%clk 0:01:32.4]} 24. Qe4 {[%clk 0:00:36.8]} 24... Qf6 {[%clk 0:01:15.6]}
25. Nf3 {[%clk 0:00:35.3]} 25... Bb6 {[%clk 0:01:15.5]} 26. Be3 {[%clk
0:00:20.2]} 26... Qe6 {[%clk 0:00:43.2]} 27. Qxe6 {[%clk 0:00:19.2]} 27... fxe6
{[%clk 0:00:44.1]} 28. Ng5 {[%clk 0:00:19.3]} 28... Bxe3 {[%clk 0:00:37.9]} 29.
fxe3 {[%clk 0:00:20.2]} 29... Re8 {[%clk 0:00:28.1]} 30. Nxe6 {[%clk 0:00:18.9]}
30... Rxe6 {[%clk 0:00:28.3]} 31. Bd5 {[%clk 0:00:18.6]} 31... Kf7 {[%clk
0:00:28.4]} 32. Kf2 {[%clk 0:00:18.6]} 32... Kf6 {[%clk 0:00:28.7]} 33. Bxe6
{[%clk 0:00:18.4]} 33... Kxe6 {[%clk 0:00:29.6]} 34. e4 {[%clk 0:00:16.4]} 34...
Ke5 {[%clk 0:00:25.5]} 35. Ke3 {[%clk 0:00:14.8]} 35... g5 {[%clk 0:00:24.5]}
36. b5 {[%clk 0:00:12.2]} 36... h5 {[%clk 0:00:20.5]} 37. h4 {[%clk 0:00:11.7]}
37... Kf6 {[%clk 0:00:11.6]} 38. Kd4 {[%clk 0:00:10]} 38... gxh4 {[%clk
0:00:09.9]} 39. gxh4 {[%clk 0:00:10.9]} 39... Ke6 {[%clk 0:00:10.2]} 40. a4
{[%clk 0:00:10.7]} 40... Ke7 {[%clk 0:00:09.9]} 41. Kd5 {[%clk 0:00:10.8]} 41...
Kd7 {[%clk 0:00:10.2]} 42. e5 {[%clk 0:00:10.1]} 42... dxe5 {[%clk 0:00:09.3]}
43. Kxe5 {[%clk 0:00:11]} 43... c6 {[%clk 0:00:09.2]} 44. c5 {[%clk 0:00:09.9]}
44... Kc7 {[%clk 0:00:08]} 45. Kf5 {[%clk 0:00:09.8]} 45... cxb5 {[%clk
0:00:04.6]} 46. axb5 {[%clk 0:00:08.9]} 46... a5 {[%clk 0:00:05.1]} 47. bxa6
{[%clk 0:00:08.7]} 1-0

[Event "*** SCC Grand Prix: Titled Tuesday Blitz"]
[Site "Chess.com"]
[Date "2020.10.06"]
[Round "8"]
[White "ClydeHillKid"]
[Black "nochewycandy"]
[Result "0-1"]
[WhiteElo "2319"]
[BlackElo "2473"]
[TimeControl "180+1"]
[EndTime "11:36:05 PDT"]
[Termination "nochewycandy won by resignation"]

1. e4 {[%clk 0:03:00.9]} 1... g6 {[%clk 0:02:59.2]} 2. d4 {[%clk 0:03:00.4]}
2... Bg7 {[%clk 0:02:59.6]} 3. Nc3 {[%clk 0:03:00.3]} 3... d6 {[%clk 0:02:59.5]}
4. Nf3 {[%clk 0:03:00.1]} 4... a6 {[%clk 0:02:59.8]} 5. Be3 {[%clk 0:02:54.2]}
5... b5 {[%clk 0:02:59.8]} 6. h3 {[%clk 0:02:54]} 6... Bb7 {[%clk 0:02:59]} 7.
Bd3 {[%clk 0:02:53.1]} 7... Nd7 {[%clk 0:02:58.2]} 8. O-O {[%clk 0:02:51]} 8...
Rc8 {[%clk 0:02:57.6]} 9. Re1 {[%clk 0:02:44.9]} 9... c5 {[%clk 0:02:57.6]} 10.
a4 {[%clk 0:02:38.1]} 10... b4 {[%clk 0:02:54.5]} 11. Nd5 {[%clk 0:02:37.2]}
11... e6 {[%clk 0:02:41.9]} 12. dxc5 {[%clk 0:01:46.4]} 12... dxc5 {[%clk
0:02:27.6]} 13. Nf4 {[%clk 0:01:22.1]} 13... Ne7 {[%clk 0:01:55.1]} 14. Nd2
{[%clk 0:00:50.6]} 14... Ne5 {[%clk 0:01:38.7]} 15. Rb1 {[%clk 0:00:35.5]} 15...
c4 {[%clk 0:01:30.1]} 16. Bf1 {[%clk 0:00:30.3]} 16... O-O {[%clk 0:01:29.5]}
17. c3 {[%clk 0:00:13.1]} 17... b3 {[%clk 0:01:26.8]} 18. f3 {[%clk 0:00:11.9]}
18... Qa5 {[%clk 0:01:24.5]} 19. Be2 {[%clk 0:00:11.4]} 19... Rfd8 {[%clk
0:01:20.7]} 20. Ra1 {[%clk 0:00:09.9]} 20... Rd7 {[%clk 0:01:02.1]} 21. Qc1
{[%clk 0:00:09]} 21... Qd8 {[%clk 0:01:01.4]} 22. Nf1 {[%clk 0:00:08.9]} 22...
N7c6 {[%clk 0:00:56.7]} 23. Rd1 {[%clk 0:00:07.5]} 23... Rxd1 {[%clk 0:00:52.5]}
24. Qxd1 {[%clk 0:00:08.4]} 24... Qc7 {[%clk 0:00:51.6]} 25. Qe1 {[%clk
0:00:08.1]} 25... Rd8 {[%clk 0:00:50.8]} 26. Rd1 {[%clk 0:00:07.7]} 26... Na5
{[%clk 0:00:39.6]} 27. Rxd8+ {[%clk 0:00:07.1]} 27... Qxd8 {[%clk 0:00:40.1]}
28. Qd2 {[%clk 0:00:07.6]} 28... Qxd2 {[%clk 0:00:39.5]} 29. Bxd2 {[%clk
0:00:08.5]} 29... Bc6 {[%clk 0:00:38.6]} 30. Ne3 {[%clk 0:00:08.3]} 30... Bxa4
{[%clk 0:00:38.2]} 31. g4 {[%clk 0:00:07.9]} 31... Bb5 {[%clk 0:00:37.5]} 32.
Nfg2 {[%clk 0:00:07.3]} 32... Nd7 {[%clk 0:00:30.9]} 33. f4 {[%clk 0:00:07.5]}
33... Nb6 {[%clk 0:00:30.9]} 34. e5 {[%clk 0:00:06.7]} 34... Bf8 {[%clk
0:00:30.2]} 35. g5 {[%clk 0:00:06.6]} 35... Na4 {[%clk 0:00:30]} 36. Bc1 {[%clk
0:00:04.9]} 36... Ba3 {[%clk 0:00:19.8]} 37. bxa3 {[%clk 0:00:04.7]} 37... b2
{[%clk 0:00:19.1]} 38. Bxb2 {[%clk 0:00:05.3]} 38... Nxb2 {[%clk 0:00:20]} 39.
Ne1 {[%clk 0:00:03.4]} 39... Na4 {[%clk 0:00:19.7]} 40. Nd1 {[%clk 0:00:03.8]}
40... Nc5 {[%clk 0:00:17.1]} 41. Nc2 {[%clk 0:00:04.4]} 41... Kf8 {[%clk
0:00:16.2]} 42. Nd4 {[%clk 0:00:04.7]} 42... Ba4 {[%clk 0:00:16.4]} 43. Ne3
{[%clk 0:00:04.1]} 43... Ne4 {[%clk 0:00:16.2]} 44. Nxc4 {[%clk 0:00:04.2]}
44... Nxc4 {[%clk 0:00:14.6]} 45. Bxc4 {[%clk 0:00:05.1]} 45... Nxc3 {[%clk
0:00:15.1]} 46. Bxa6 {[%clk 0:00:05.1]} 46... Nb1 {[%clk 0:00:15.4]} 47. Nc2
{[%clk 0:00:04.1]} 47... Bxc2 {[%clk 0:00:15.6]} 48. Kf2 {[%clk 0:00:03.5]}
48... Nxa3 {[%clk 0:00:15.9]} 49. Kg3 {[%clk 0:00:03.9]} 49... Bf5 {[%clk
0:00:16]} 50. Be2 {[%clk 0:00:03.2]} 50... Nc2 {[%clk 0:00:16.3]} 51. h4 {[%clk
0:00:03.8]} 51... Nd4 {[%clk 0:00:17]} 52. Bf1 {[%clk 0:00:03.8]} 52... Kg7
{[%clk 0:00:17.3]} 53. Bc4 {[%clk 0:00:04]} 53... h5 {[%clk 0:00:17.6]} 54. Ba2
{[%clk 0:00:04.5]} 54... Kf8 {[%clk 0:00:18]} 55. Bc4 {[%clk 0:00:04.8]} 55...
Ke7 {[%clk 0:00:18.4]} 56. Bf1 {[%clk 0:00:05.7]} 56... Be4 {[%clk 0:00:18.9]}
57. Kf2 {[%clk 0:00:05.5]} 57... Bd5 {[%clk 0:00:19.3]} 58. Ke3 {[%clk
0:00:06.4]} 58... Nf5+ {[%clk 0:00:19.9]} 59. Kf2 {[%clk 0:00:06.2]} 59... Nxh4
{[%clk 0:00:20.8]} 0-1

[Event "*** SCC Grand Prix: Titled Tuesday Blitz"]
[Site "Chess.com"]
[Date "2020.10.06"]
[Round "8"]
[White "Blagorod"]
[Black "ajdemipopushi"]
[Result "0-1"]
[WhiteElo "2182"]
[BlackElo "2356"]
[TimeControl "180+1"]
[EndTime "11:36:07 PDT"]
[Termination "ajdemipopushi won by resignation"]

1. e4 {[%clk 0:03:00.9]} 1... c5 {[%clk 0:02:59.5]} 2. Nc3 {[%clk 0:03:00.5]}
2... g6 {[%clk 0:02:59.7]} 3. g3 {[%clk 0:03:00.9]} 3... Bg7 {[%clk 0:03:00.2]}
4. Bg2 {[%clk 0:03:01.5]} 4... Nc6 {[%clk 0:03:00.8]} 5. d3 {[%clk 0:03:02.1]}
5... d6 {[%clk 0:03:00.8]} 6. f4 {[%clk 0:03:02]} 6... e6 {[%clk 0:03:00.7]} 7.
Nf3 {[%clk 0:03:02]} 7... Nge7 {[%clk 0:03:01.1]} 8. O-O {[%clk 0:03:02.7]} 8...
O-O {[%clk 0:03:00.9]} 9. Be3 {[%clk 0:03:03.1]} 9... Nd4 {[%clk 0:03:00.8]} 10.
e5 {[%clk 0:03:01.1]} 10... Nef5 {[%clk 0:02:39.3]} 11. Bf2 {[%clk 0:03:01]}
11... dxe5 {[%clk 0:02:39.5]} 12. fxe5 {[%clk 0:03:00.6]} 12... Nxf3+ {[%clk
0:02:29.6]} 13. Qxf3 {[%clk 0:03:00.4]} 13... Bxe5 {[%clk 0:02:28.4]} 14. Bxc5
{[%clk 0:02:53.5]} 14... Bd4+ {[%clk 0:02:27]} 15. Bxd4 {[%clk 0:02:50.7]} 15...
Qxd4+ {[%clk 0:02:12.3]} 16. Qf2 {[%clk 0:02:45]} 16... Bd7 {[%clk 0:02:06]} 17.
Bxb7 {[%clk 0:02:20.5]} 17... Rab8 {[%clk 0:02:04.2]} 18. Bg2 {[%clk 0:02:17.8]}
18... Rxb2 {[%clk 0:02:01.5]} 19. Ne4 {[%clk 0:02:18.1]} 19... Ba4 {[%clk
0:01:34.1]} 20. Qxd4 {[%clk 0:02:08]} 20... Nxd4 {[%clk 0:01:33.4]} 21. c3
{[%clk 0:01:54]} 21... Ne2+ {[%clk 0:01:32.6]} 22. Kh1 {[%clk 0:01:52.4]} 22...
Kg7 {[%clk 0:01:25.6]} 23. Rab1 {[%clk 0:01:18.8]} 23... Rxa2 {[%clk 0:01:19.5]}
24. Rb7 {[%clk 0:01:18.5]} 24... Bc6 {[%clk 0:01:18.2]} 25. Rc7 {[%clk
0:01:18.5]} 25... Bxe4 {[%clk 0:01:15.1]} 26. Bxe4 {[%clk 0:01:14]} 26... a5
{[%clk 0:00:59.3]} 27. d4 {[%clk 0:00:57.9]} 27... Ra3 {[%clk 0:00:42.2]} 28. d5
{[%clk 0:00:41]} 28... Nxc3 {[%clk 0:00:41.7]} 29. dxe6 {[%clk 0:00:19.3]} 29...
Nxe4 {[%clk 0:00:40.8]} 30. Rfxf7+ {[%clk 0:00:16.5]} 30... Rxf7 {[%clk
0:00:40.2]} 31. Rxf7+ {[%clk 0:00:16.4]} 31... Kg8 {[%clk 0:00:40.2]} 32. Rf4
{[%clk 0:00:12.1]} 32... Nd6 {[%clk 0:00:24.1]} 33. e7 {[%clk 0:00:10.8]} 33...
Re3 {[%clk 0:00:20.5]} 34. Rf6 {[%clk 0:00:09.2]} 34... Rxe7 {[%clk 0:00:17.7]}
35. Rxd6 {[%clk 0:00:09.3]} 35... Ra7 {[%clk 0:00:18.4]} 36. Rd3 {[%clk
0:00:07.9]} 36... a4 {[%clk 0:00:18.8]} 37. Ra3 {[%clk 0:00:07.6]} 37... Kf7
{[%clk 0:00:19.3]} 38. Kg2 {[%clk 0:00:08.2]} 38... Ke6 {[%clk 0:00:20]} 39. Kf3
{[%clk 0:00:07.9]} 39... Kd5 {[%clk 0:00:20.4]} 40. h4 {[%clk 0:00:06.9]} 40...
Kc4 {[%clk 0:00:20.4]} 41. Kg4 {[%clk 0:00:05.4]} 41... Kb4 {[%clk 0:00:20.3]}
42. Ra1 {[%clk 0:00:04.6]} 42... a3 {[%clk 0:00:20.8]} 43. Kg5 {[%clk
0:00:04.9]} 43... a2 {[%clk 0:00:20.6]} 44. Kh6 {[%clk 0:00:03.7]} 44... Kb3
{[%clk 0:00:20.9]} 45. g4 {[%clk 0:00:02.8]} 45... Kb2 {[%clk 0:00:21]} 46.
Rxa2+ {[%clk 0:00:02.3]} 46... Kxa2 {[%clk 0:00:21.2]} 47. h5 {[%clk 0:00:02.8]}
47... gxh5 {[%clk 0:00:21]} 48. gxh5 {[%clk 0:00:02.6]} 48... Kb3 {[%clk
0:00:21]} 0-1